bitfinex-derivatives/quotes_BTCF0:USTF0_20241227
["timestamp","ask_amount","ask_price","bid_price","bid_amount"]
[1735290626279,0.23608722,97080.0,97048.0,0.051597]
[1735290626683,0.00010048,97079.0,97048.0,0.051597]
[1735290626881,9.239e-05,97078.0,97060.0,0.051591]
[1735290627085,0.23608722,97100.0,97078.0,0.051582]
[1735290627283,0.23608722,97100.0,97050.0,0.28768422]
[1735290627475,0.23608722,97100.0,97037.0,0.30659709]
[1735290627476,0.051572,97097.0,97051.0,0.03004257]
[1735290627678,0.051577,97089.0,97064.0,0.051589]
[1735290627878,0.23608722,97080.0,97037.0,0.00659709]
[1735290628085,0.23608722,97062.0,97044.0,0.0516]
[1735290628284,0.23608722,97062.0,97037.0,0.00659709]
[1735290628487,0.051594,97055.0,97037.0,0.00659709]
[1735290628786,0.23608722,97062.0,97037.0,0.00659709]
[1735290629088,0.051592,97059.0,97038.0,0.01164699]
[1735290629392,0.051592,97059.0,97037.0,0.00659709]
[1735290629585,0.01096023,97081.0,97038.0,0.01164782]
[1735290629586,0.23608722,97080.0,97038.0,0.01164782]
[1735290629786,0.051584,97074.0,97051.0,0.051596]
[1735290629988,0.0001007,97073.0,97051.0,0.051596]
[1735290630187,0.53608722,97080.0,97052.0,0.01164695]
[1735290630379,0.53608722,97080.0,97037.0,0.00659709]
[1735290630691,0.051584,97075.0,97048.0,0.051598]
[1735290630886,0.23660723,97080.0,97048.0,0.051598]
[1735290631083,0.051586,97072.0,97049.0,0.01176671]
[1735290631389,0.53608722,97080.0,97037.0,0.00659709]
[1735290631390,0.051585,97073.0,97044.0,0.0516]
[1735290631592,0.051585,97073.0,97045.0,0.01176731]
[1735290631783,0.23608722,97060.0,97046.0,0.01176731]
[1735290632093,0.051597,97050.0,97037.0,0.00659709]
[1735290632392,0.051598,97048.0,97037.0,0.00659709]
[1735290633285,0.051598,97048.0,97005.0,0.34648]
[1735290633286,0.051598,97048.0,97000.0,0.34652]
[1735290633487,0.051598,97048.0,97024.0,0.05161]
[1735290633684,0.23608722,97040.0,97025.0,0.03072849]
[1735290633883,0.23608722,97040.0,97026.0,0.01182615]
[1735290634085,0.23608722,97036.0,96968.0,0.34652]
[1735290634287,0.28770022,97020.0,96995.0,0.051626]
[1735290634505,0.28770022,97020.0,96998.0,0.051624]
[1735290634684,0.21343855,97030.0,97007.0,0.051619]
[1735290634889,0.051611,97024.0,97007.0,0.051619]
[1735290635193,0.15339363,96988.0,96987.0,0.05163]
[1735290635394,0.18407236,96996.0,96987.0,0.05163]
[1735290635595,0.44952577,97030.0,97003.0,0.051622]
[1735290635892,0.051612,97023.0,96980.0,0.23608722]
[1735290636079,0.051612,97023.0,96980.0,0.53608722]
[1735290636283,0.18407236,97029.0,96994.0,0.051626]
[1735290636481,0.18407236,97029.0,96973.0,0.051637]
[1735290636482,0.051622,97003.0,96973.0,0.051637]
[1735290636792,0.23608722,96990.0,96953.0,0.01097995]
[1735290637097,0.051631,96987.0,96973.0,0.051638]
[1735290637478,0.051631,96987.0,96953.0,0.01097995]
[1735290637682,0.23608722,96990.0,96941.0,0.051655]
[1735290637683,0.13243436,96986.0,96941.0,0.051655]
[1735290637894,0.13243436,96986.0,96965.0,0.051642]
[1735290638085,0.13243436,96986.0,96969.0,0.05164]
[1735290638086,0.051632,96985.0,96969.0,0.05164]
[1735290638286,0.051632,96983.0,96960.0,0.051644]
[1735290638495,0.13243436,96986.0,96960.0,0.051644]
[1735290638687,0.12277055,96963.0,96934.0,0.051658]
[1735290638885,0.12277055,96963.0,96932.0,0.00108]
[1735290639085,0.12277055,96963.0,96928.0,0.01084463]
[1735290639086,0.08079036,96962.0,96928.0,0.01084463]
[1735290639289,0.08079036,96962.0,96941.0,0.051654]
[1735290639584,0.08079036,96962.0,96949.0,0.05165]
[1735290639780,0.08064404,96962.0,96949.0,0.05165]
[1735290640086,0.12277055,96963.0,96922.0,0.01083174]
[1735290640087,0.02899404,96961.0,96922.0,0.01083174]
[1735290640283,0.02899404,96961.0,96953.0,0.051648]
[1735290640487,0.02899404,96961.0,96922.0,0.01083174]
[1735290640488,0.08374841,96961.0,96922.0,0.01083174]
[1735290640689,0.08374841,96961.0,96934.0,0.051658]
[1735290640893,0.08374841,96961.0,96949.0,0.05165]
[1735290641093,0.00011561,96960.0,96951.0,0.051649]
[1735290641289,0.08374841,96961.0,96954.0,0.051648]
[1735290641595,3.7e-07,96961.0,96960.0,0.051645]
[1735290642098,0.21343855,96981.0,96940.0,0.23608722]
[1735290642287,1.5e-07,96952.0,96951.0,0.051649]
[1735290642685,0.21343855,96984.0,96977.0,0.051635]
[1735290642896,0.02911358,96983.0,96977.0,0.051635]
[1735290643092,0.00010003,96982.0,96941.0,0.051654]
[1735290643297,9.833e-05,96981.0,96940.0,0.24692184]
[1735290643498,8.407e-05,96980.0,96943.0,0.051653]
[1735290643698,0.23608722,96970.0,96931.0,0.34656]
[1735290643999,0.23608722,96970.0,96940.0,0.051655]
[1735290644000,0.051644,96962.0,96940.0,0.051655]
[1735290644401,0.051644,96960.0,96940.0,0.045655]
[1735290644900,0.23608722,96970.0,96946.0,0.05165]
[1735290645104,0.0918776,96947.0,96946.0,0.05165]
[1735290645501,0.09196864,96947.0,96946.0,0.05165]
[1735290645799,0.09196864,96947.0,96931.0,0.34656]
[1735290645800,0.0918776,96947.0,96935.0,0.051656]
[1735290646001,0.0918776,96947.0,96936.0,0.01117546]
[1735290646203,0.0918776,96947.0,96935.0,0.051656]
[1735290646501,0.0918776,96952.0,96942.0,0.051652]
[1735290646701,0.0918776,96952.0,96931.0,0.34656]
[1735290647001,8.638e-05,96951.0,96950.0,0.051648]
[1735290648491,0.0918776,96962.0,96950.0,0.051648]
[1735290648703,0.0918776,96962.0,96948.0,0.051649]
[1735290649199,0.0918776,96962.0,96952.0,0.051647]
[1735290649805,0.0918776,96962.0,96957.0,0.051645]
[1735290650301,0.0918776,96962.0,96931.0,0.65747415]
[1735290650302,0.0918776,96963.0,96931.0,0.35747415]
[1735290650599,0.0918776,96963.0,96948.0,0.051649]
[1735290651204,0.0918776,96963.0,96951.0,0.051647]
[1735290651395,0.0918776,96963.0,96954.0,0.051646]
[1735290651703,0.0918776,96963.0,96962.0,0.051642]
[1735290651904,0.23608722,96970.0,96962.0,0.051642]
[1735290652108,0.2037,96983.0,96931.0,0.34656]
[1735290652299,0.051633,96979.0,96933.0,0.051657]
[1735290652489,0.051633,96979.0,96962.0,0.051642]
[1735290652692,7.94e-05,96978.0,96962.0,0.051642]
[1735290652896,0.00012766,96977.0,96962.0,0.051642]
[1735290653106,0.23608722,96972.0,96931.0,0.34656]
[1735290653401,0.23608722,96972.0,96951.0,0.051648]
[1735290653701,0.23608722,96961.0,96951.0,0.051648]
[1735290654803,0.09173403,96963.0,96931.0,0.34656]
[1735290654996,0.23608722,96960.0,96932.0,0.01129597]
[1735290655198,0.09173403,96957.0,96933.0,0.01129597]
[1735290655411,0.09173403,96957.0,96950.0,0.051648]
[1735290655790,0.09173403,96953.0,96950.0,0.051648]
[1735290656002,0.09173403,96953.0,96872.0,0.0395989]
[1735290656003,0.09173403,96953.0,96893.0,0.34684]
[1735290656200,0.09173403,96953.0,96915.0,0.051667]
[1735290656408,0.09173403,96953.0,96941.0,0.051653]
[1735290656602,0.09173403,96953.0,96951.0,0.051647]
[1735290657302,0.09173403,96953.0,96938.0,0.051655]
[1735290657507,0.09173403,96942.0,96939.0,0.0114477]
[1735290657707,0.09173403,96942.0,96940.0,0.0114477]
[1735290657905,0.09173403,96942.0,96936.0,0.051655]
[1735290658111,0.09173403,96942.0,96937.0,0.01144951]
[1735290658297,0.09173403,96942.0,96936.0,0.051655]
[1735290658803,7.563e-05,96941.0,96936.0,0.051655]
[1735290659004,0.00011496,96940.0,96936.0,0.051655]
[1735290659201,0.18360905,96958.0,96936.0,0.051655]
[1735290659606,0.18360905,96958.0,96937.0,0.01138938]
[1735290659807,0.18360905,96958.0,96918.0,0.01078178]
[1735290659808,0.18360905,96958.0,96938.0,0.01138915]
[1735290660000,0.18360905,96958.0,96918.0,0.31078178]
[1735290660001,0.18360905,96958.0,96956.0,0.051645]
[1735290660310,0.00010132,96957.0,96956.0,0.051645]
[1735290660802,0.0502282,96958.0,96956.0,0.051645]
[1735290661598,0.18426651,96970.0,96956.0,0.051645]
[1735290661802,0.18426651,96970.0,96968.0,0.05164]
[1735290662911,0.0502282,96979.0,96968.0,0.35164]
[1735290663204,0.24392977,96994.0,96968.0,0.35164]
[1735290663205,6.1e-07,96990.0,96978.0,0.051635]
[1735290663411,0.24392977,96993.0,96992.0,0.051628]
[1735290663909,0.52288813,97017.0,96992.0,0.351628]
[1735290664116,0.31685435,97017.0,96991.0,0.23608722]
[1735290664300,3.4e-07,97017.0,97016.0,0.051615]
[1735290664499,0.23608722,97060.0,97007.0,0.23608722]
[1735290664809,0.23608722,97060.0,97043.0,0.0516]
[1735290665106,0.17292969,97058.0,97025.0,0.05161]
[1735290665309,0.17292969,97058.0,97055.0,0.051594]
[1735290665604,0.33082891,97057.0,97044.0,0.051599]
[1735290665806,0.33082891,97057.0,97035.0,0.00154603]
[1735290666013,0.33082891,97057.0,97052.0,0.051595]
[1735290666216,0.33082891,97057.0,97035.0,0.00154603]
[1735290666409,0.01887372,97056.0,97044.0,0.30014101]
[1735290666716,0.33082891,97057.0,97044.0,0.30014101]
[1735290666717,0.03507328,97055.0,97044.0,0.17111014]
[1735290666907,0.04349299,97054.0,97044.0,0.17111014]
[1735290667110,0.02461927,97053.0,97044.0,0.17111014]
[1735290667309,0.02461927,97052.0,97044.0,0.0516]
[1735290667609,0.05969255,97051.0,97044.0,0.0516]
[1735290667797,0.01619956,97051.0,97044.0,0.0516]
[1735290667998,0.00891011,97050.0,97031.0,0.36073572]
[1735290668213,0.33082891,97057.0,97056.0,0.051594]
[1735290668602,0.13604991,97057.0,97056.0,0.051594]
[1735290668802,0.00154605,97077.0,97076.0,0.051583]
[1735290669203,5e-08,97077.0,97076.0,0.051583]
[1735290669618,0.1,97100.0,97076.0,0.3]
[1735290669811,1e-06,97100.0,97099.0,0.05157]
[1735290670207,0.23608722,97130.0,97070.0,0.23608722]
[1735290670410,0.051563,97113.0,97079.0,0.00154488]
[1735290670615,0.2184,97129.0,97079.0,0.00154488]
[1735290670808,0.05156,97117.0,97093.0,0.051573]
[1735290671003,0.5184,97129.0,97093.0,0.051573]
[1735290671209,0.051559,97120.0,97084.0,0.051578]
[1735290671511,0.051554,97128.0,97102.0,0.051567]
[1735290671715,0.00154491,97133.0,97093.0,0.051571]
[1735290671909,0.00154491,97133.0,97130.0,0.051551]
[1735290672715,0.2211,97172.0,97134.0,0.051549]
[1735290672914,0.2211,97172.0,97158.0,0.051537]
[1735290673116,0.2211,97172.0,97123.0,0.23608722]
[1735290673311,0.2211,97172.0,97125.0,0.051554]
[1735290673518,0.2211,97172.0,97148.0,0.051542]
[1735290673715,0.272629,97172.0,97148.0,0.051542]
[1735290674015,0.2211,97172.0,97130.0,0.23608722]
[1735290674216,0.051522,97186.0,97157.0,0.051537]
[1735290674425,0.2211,97189.0,97164.0,0.051534]
[1735290674609,0.2211,97189.0,97150.0,0.23608722]
[1735290674610,0.00154449,97192.0,97166.0,0.051533]
[1735290674812,0.23608722,97190.0,97166.0,0.051533]
[1735290675118,0.23608722,97190.0,97165.0,0.051533]
[1735290675320,0.23608722,97190.0,97167.0,0.051532]
[1735290675517,0.00154449,97192.0,97166.0,0.051533]
[1735290675709,0.051523,97184.0,97158.0,0.051537]
[1735290675911,0.051525,97182.0,97146.0,0.05308699]
[1735290676111,0.051525,97182.0,97156.0,0.051538]
[1735290676318,0.2112,97183.0,97164.0,0.051534]
[1735290676718,0.23608722,97174.0,97151.0,0.051542]
[1735290677124,0.21176001,97183.0,97156.0,0.051539]
[1735290677323,0.2112,97183.0,97146.0,0.00154399]
[1735290677623,0.2112,97183.0,97156.0,0.051539]
[1735290677821,0.051526,97181.0,97156.0,0.051539]
[1735290678027,0.21172001,97183.0,97146.0,0.00154399]
[1735290678325,0.2112,97183.0,97150.0,0.23608722]
[1735290678830,0.2112,97183.0,97173.0,0.05153]
[1735290679122,0.262726,97183.0,97158.0,0.051539]
[1735290679314,0.2112,97183.0,97146.0,0.00154399]
[1735290679531,0.051527,97182.0,97157.0,0.05154]
[1735290680018,0.351527,97182.0,97157.0,0.05154]
[1735290680327,0.051527,97182.0,97157.0,0.05154]
[1735290680526,0.351527,97182.0,97157.0,0.05154]
[1735290680925,0.051538,97162.0,97146.0,0.00154399]
[1735290681424,0.351538,97162.0,97146.0,0.00154399]
[1735290681822,0.23608722,97170.0,97146.0,0.00154399]
[1735290682025,0.53608722,97170.0,97146.0,0.00154399]
[1735290682217,0.051537,97163.0,97146.0,0.00154399]
[1735290682522,0.23608722,97156.0,97137.0,0.05155]
[1735290682720,0.051537,97163.0,97139.0,0.051549]
[1735290683028,0.2052,97169.0,97156.0,0.05154]
[1735290683325,0.26331751,97181.0,97140.0,0.051549]
[1735290683521,0.051529,97178.0,97115.0,0.15406622]
[1735290683725,0.23608722,97170.0,97118.0,0.15406622]
[1735290684030,0.21231052,97181.0,97141.0,0.051548]
[1735290684232,0.21179051,97181.0,97169.0,0.051533]
[1735290684527,0.2052,97199.0,97177.0,0.051529]
[1735290685522,0.1,97200.0,97190.0,0.051522]
[1735290686731,0.66828722,97240.0,97190.0,0.3]
[1735290686732,0.22,97240.0,97190.0,0.3]
[1735290687041,0.22,97240.0,97200.0,0.23608722]
[1735290687231,0.2156,97257.0,97238.0,0.051497]
[1735290687428,0.23608722,97260.0,97207.0,0.051513]
[1735290687429,0.23608722,97260.0,97242.0,0.051494]
[1735290687627,0.2084,97271.0,97239.0,0.051497]
[1735290687927,0.2084,97271.0,97218.0,0.0015431]
[1735290687928,0.23608722,97260.0,97218.0,0.0015431]
[1735290688233,0.23608722,97260.0,97222.0,0.051507]
[1735290688430,0.23608722,97260.0,97242.0,0.051496]
[1735290688633,0.23608722,97260.0,97218.0,0.0015431]
[1735290689023,0.23608722,97260.0,97240.0,0.051497]
[1735290689226,0.051492,97250.0,97224.0,0.051505]
[1735290689426,0.53608722,97260.0,97235.0,0.051499]
[1735290689736,0.23608722,97260.0,97218.0,0.0015431]
[1735290689928,0.53608722,97260.0,97218.0,0.0015431]
[1735290690235,0.23608722,97240.0,97220.0,0.051507]
[1735290690536,0.3,97260.0,97231.0,0.051501]
[1735290690733,0.23608722,97250.0,97231.0,0.051501]
[1735290691034,0.23608722,97250.0,97218.0,0.0015431]
[1735290691229,0.58757922,97250.0,97226.0,0.051504]
[1735290691428,0.2053,97270.0,97218.0,0.0015431]
[1735290691429,0.051486,97261.0,97218.0,0.0015431]
[1735290691629,0.79286822,97270.0,97239.0,0.051497]
[1735290691832,0.79286822,97270.0,97219.0,0.00154297]
[1735290692129,0.79286822,97270.0,97237.0,0.051498]
[1735290692130,0.051482,97268.0,97237.0,0.051498]
[1735290692430,0.23608722,97250.0,97219.0,0.00154297]
[1735290692632,0.23608722,97250.0,97228.0,0.051503]
[1735290692832,0.53608722,97250.0,97228.0,0.051503]
[1735290693019,0.051506,97223.0,97190.0,0.051523]
[1735290693223,0.3,97250.0,97170.0,0.5201]
[1735290693224,0.23763071,97230.0,97170.0,0.5201]
[1735290693436,0.23763071,97230.0,97206.0,0.051515]
[1735290693627,0.23763071,97230.0,97214.0,0.051511]
[1735290694023,0.53763071,97230.0,97203.0,0.051516]
[1735290694228,0.58913371,97230.0,97203.0,0.051516]
[1735290694421,0.051507,97222.0,97198.0,0.051519]
[1735290694628,0.53763071,97230.0,97194.0,0.00154346]
[1735290694833,0.051516,97205.0,97194.0,0.00154346]
[1735290695035,0.23608722,97210.0,97194.0,0.00154346]
[1735290695434,0.051517,97203.0,97194.0,0.00154346]
[1735290695628,0.051517,97203.0,97175.0,0.051531]
[1735290695936,0.051517,97203.0,97163.0,0.34604]
[1735290695937,0.351517,97203.0,97179.0,0.051529]
[1735290696134,0.3,97203.0,97163.0,0.34604]
[1735290696430,0.00154366,97223.0,97163.0,0.34604]
[1735290696632,0.23608722,97210.0,97163.0,0.34604]
[1735290697029,0.53608722,97210.0,97163.0,0.34604]
[1735290697236,0.23608722,97210.0,97189.0,0.051524]
[1735290697834,0.23608722,97210.0,97163.0,0.34604]
[1735290698333,0.051517,97203.0,97180.0,0.051528]
[1735290698931,0.3,97203.0,97172.0,0.051533]
[1735290699135,0.3,97203.0,97165.0,0.23755286]
[1735290699136,0.051525,97188.0,97165.0,0.23755286]
[1735290699333,0.3,97203.0,97165.0,0.23755286]
[1735290699639,0.051517,97202.0,97163.0,0.34604]
[1735290699835,0.23608722,97210.0,97168.0,0.051535]
[1735290700134,0.05152,97197.0,97174.0,0.051532]
[1735290700434,0.05152,97197.0,97163.0,0.34604]
[1735290700435,0.051518,97200.0,97178.0,0.05153]
[1735290700630,0.53608722,97210.0,97166.0,0.051536]
[1735290700932,0.53608722,97210.0,97163.0,0.34604]
[1735290701134,0.051516,97205.0,97177.0,0.05153]
[1735290701323,0.53660723,97210.0,97163.0,0.34604]
[1735290701527,0.051517,97203.0,97175.0,0.051531]
[1735290701731,0.051518,97201.0,97177.0,0.05153]
[1735290701934,0.2118,97222.0,97170.0,0.23608722]
[1735290702434,0.051507,97221.0,97198.0,0.051519]
[1735290702643,0.2118,97222.0,97194.0,0.051521]
[1735290702831,0.2118,97222.0,97196.0,0.05152]
[1735290703143,0.051498,97239.0,97190.0,0.23608722]
[1735290703441,0.051499,97237.0,97209.0,0.051513]
[1735290703636,0.051503,97229.0,97199.0,0.051519]
[1735290703840,0.051505,97226.0,97190.0,0.23608722]
[1735290704041,0.051505,97226.0,97210.0,0.23755286]
[1735290704230,0.01078271,97247.0,97210.0,0.23755286]
[1735290704433,0.051499,97237.0,97210.0,0.23755286]
[1735290704629,0.3,97247.0,97210.0,0.23755286]
[1735290704836,0.051493,97247.0,97219.0,0.051508]
[1735290705437,0.2091,97254.0,97210.0,0.23608722]
[1735290705639,0.2091,97254.0,97227.0,0.051504]
[1735290705840,0.2091,97254.0,97234.0,0.0515]
[1735290706045,0.00154332,97257.0,97223.0,0.051506]
[1735290706344,0.051492,97250.0,97223.0,0.051506]
[1735290706638,0.051496,97242.0,97220.0,0.23755286]
[1735290706840,0.23608722,97250.0,97220.0,0.23755286]
[1735290706841,0.3,97250.0,97226.0,0.051504]
[1735290707036,0.00154332,97257.0,97220.0,0.23755286]
[1735290707244,0.051489,97255.0,97230.0,0.051502]
[1735290707431,0.051489,97255.0,97231.0,0.051501]
[1735290707636,0.05149,97254.0,97231.0,0.051501]
[1735290707836,0.5048,97267.0,97222.0,0.051506]
[1735290708145,0.051495,97244.0,97222.0,0.051506]
[1735290708340,0.23608722,97250.0,97234.0,0.17976697]
[1735290708642,0.0515,97235.0,97234.0,0.17976697]
[1735290708841,0.53608722,97250.0,97228.0,0.23755286]
[1735290709135,0.00154368,97234.0,97150.0,0.23608722]
[1735290709346,0.23608722,97221.0,97193.0,0.4207928]
[1735290709731,0.051516,97205.0,97186.0,0.001]
[1735290709936,0.051516,97205.0,97184.0,0.051527]
[1735290710143,0.23608722,97221.0,97184.0,0.051527]
[1735290710333,0.051516,97204.0,97184.0,0.051527]
[1735290710528,0.53608722,97221.0,97184.0,0.051527]
[1735290710529,0.051517,97203.0,97184.0,0.051527]
[1735290710934,0.05151,97217.0,97173.0,0.00154366]
[1735290711238,0.051518,97201.0,97181.0,0.051528]
[1735290712638,0.09193788,97215.0,97173.0,0.00154366]
[1735290712945,0.051518,97201.0,97182.0,0.051527]
[1735290714151,0.09193788,97212.0,97173.0,0.00154366]
[1735290714449,0.05152,97197.0,97173.0,0.05307566]
[1735290714635,0.051521,97194.0,97173.0,0.05307566]
[1735290714832,0.051521,97194.0,97173.0,0.00154366]
[1735290715038,0.051521,97194.0,97177.0,0.05153]
[1735290716348,0.051522,97193.0,97173.0,0.00154366]
[1735290716538,0.39193788,97206.0,97173.0,0.00154366]
[1735290716743,0.051528,97181.0,97173.0,0.00154366]
[1735290717052,0.051521,97194.0,97173.0,0.00154366]
[1735290717234,0.00154382,97201.0,97173.0,0.00154366]
[1735290717440,0.00011479,97192.0,97181.0,0.051528]
[1735290718241,0.00011479,97192.0,97182.0,0.051527]
[1735290718444,0.00011479,97192.0,97174.0,0.051531]
[1735290718634,0.00011479,97192.0,97174.0,0.3]
[1735290718943,0.00154382,97201.0,97194.0,0.051521]
[1735290719143,0.00154382,97201.0,97174.0,0.3]
[1735290719554,0.00154382,97201.0,97199.0,0.051518]
[1735290720239,0.01,97286.0,97199.0,0.051518]
[1735290720240,0.051514,97208.0,97199.0,0.051518]
[1735290721034,0.051507,97220.0,97200.0,0.01118398]
[1735290721239,0.051507,97220.0,97207.0,0.051514]
[1735290721750,0.09193788,97232.0,97208.0,0.01118398]
[1735290721945,0.09193788,97232.0,97210.0,0.23608722]
[1735290722142,0.09193788,97232.0,97211.0,0.02116629]
[1735290722345,0.09193788,97232.0,97212.0,0.02116629]
[1735290722647,0.09193788,97232.0,97229.0,0.051502]
[1735290722849,0.0015435,97240.0,97239.0,0.051497]
[1735290723153,0.09193788,97252.0,97250.0,0.051491]
[1735290723337,0.09193788,97252.0,97251.0,0.01117909]
[1735290724156,0.13103758,97263.0,97262.0,0.051485]
[1735290724450,0.13103758,97263.0,97262.0,0.06266409]
[1735290724653,0.34556035,97263.0,97262.0,0.06266409]
[1735290725048,0.00154247,97283.0,97277.0,0.051476]
[1735290725251,0.21606524,97282.0,97281.0,0.051475]
[1735290725438,0.21606524,97289.0,97281.0,0.02956332]
[1735290725758,0.21606524,97289.0,97287.0,0.051471]
[1735290726049,0.21606524,97289.0,97288.0,0.01117909]
[1735290726350,0.21606524,97289.0,97287.0,0.051471]
[1735290726546,0.21606524,97289.0,97288.0,0.02968851]
[1735290727245,0.21606524,97289.0,97262.0,0.6465]
[1735290727438,0.21606524,97289.0,97285.0,0.051472]
[1735290727642,0.21606524,97289.0,97286.0,0.0113231]
[1735290727842,0.21606524,97289.0,97287.0,0.0113231]
[1735290728044,0.21606524,97289.0,97288.0,0.0113231]
[1735290728447,0.051474,97283.0,97266.0,0.051482]
[1735290728641,0.23608722,97300.0,97267.0,0.02806239]
[1735290728837,0.20474214,97299.0,97261.0,0.00154222]
[1735290729044,0.20474214,97309.0,97270.0,0.05148]
[1735290729345,0.20474214,97309.0,97261.0,0.00154222]
[1735290729554,0.20474214,97309.0,97273.0,0.051479]
[1735290729555,0.50474214,97309.0,97273.0,0.051479]
[1735290729746,0.051468,97294.0,97273.0,0.051479]
[1735290729942,0.50474214,97309.0,97261.0,0.00154222]
[1735290729943,0.051463,97304.0,97261.0,0.00154222]
[1735290730150,0.50530215,97309.0,97262.0,0.00987821]
[1735290730344,0.051469,97292.0,97267.0,0.051482]
[1735290730548,0.23608722,97300.0,97261.0,0.00154222]
[1735290730746,0.051464,97302.0,97275.0,0.051478]
[1735290730945,0.50474214,97309.0,97272.0,0.051479]
[1735290731144,0.50474214,97309.0,97261.0,0.00154222]
[1735290731145,0.051462,97305.0,97264.0,0.051484]
[1735290731351,0.051469,97292.0,97264.0,0.051484]
[1735290731550,0.051469,97292.0,97266.0,0.051483]
[1735290731748,0.20474214,97291.0,97278.0,0.051476]
[1735290731945,0.20474214,97307.0,97299.0,0.051465]
[1735290732253,0.20474214,97307.0,97303.0,0.051463]
[1735290732453,0.20474214,97307.0,97306.0,0.051462]
[1735290735950,0.00154222,97310.0,97296.0,0.051467]
[1735290736149,0.20474214,97307.0,97296.0,0.051467]
[1735290736351,0.20474214,97307.0,97280.0,0.23608722]
[1735290736558,0.20474214,97307.0,97298.0,0.051466]
[1735290736956,0.20474214,97307.0,97280.0,0.23608722]
[1735290737149,0.20474214,97307.0,97303.0,0.051463]
[1735290737458,0.20474214,97307.0,97305.0,0.051462]
[1735290738853,0.20474214,97307.0,97285.0,0.00154194]
[1735290739045,0.20474214,97307.0,97286.0,0.02863353]
[1735290739356,0.20474214,97307.0,97306.0,0.051461]
[1735290739655,0.20474214,97307.0,97297.0,0.051466]
[1735290739963,0.53608722,97307.0,97260.0,0.2062]
[1735290740151,0.15248747,97300.0,97260.0,0.15348747]
[1735290740455,0.051462,97305.0,97289.0,0.05147]
[1735290740663,0.2032002,97306.0,97298.0,0.051465]
[1735290741160,0.2032002,97306.0,97278.0,0.001542]
[1735290741459,0.2032002,97306.0,97299.0,0.051465]
[1735290741751,0.2032002,97306.0,97300.0,0.01154344]
[1735290741962,0.2032002,97306.0,97294.0,0.051467]
[1735290742151,0.2032002,97306.0,97295.0,0.01154409]
[1735290742347,0.2032002,97306.0,97296.0,0.01154409]
[1735290742552,0.19165611,97305.0,97275.0,0.00154194]
[1735290742746,0.051478,97276.0,97254.0,0.051489]
[1735290742953,0.051473,97284.0,97255.0,0.02874499]
[1735290743261,0.19011417,97289.0,97260.0,0.15248747]
[1735290743558,0.15248747,97290.0,97258.0,0.051486]
[1735290743946,0.051464,97302.0,97259.0,0.051486]
[1735290743947,0.15248747,97280.0,97259.0,0.051486]
[1735290744262,0.23510486,97300.0,97262.0,0.051484]
[1735290744559,0.051476,97280.0,97262.0,0.051484]
[1735290744955,0.19011417,97279.0,97262.0,0.051484]
[1735290745458,0.23510486,97280.0,97263.0,0.01850295]
[1735290745661,0.17161122,97278.0,97240.0,0.00154236]
[1735290745856,0.23510486,97260.0,97226.0,0.051504]
[1735290746062,0.23510486,97260.0,97227.0,0.02673393]
[1735290746364,0.17006886,97259.0,97249.0,0.051491]
[1735290746547,0.17006886,97276.0,97224.0,0.30007855]
[1735290746753,0.17006886,97276.0,97225.0,0.02678861]
[1735290746949,0.17006886,97276.0,97224.0,0.31073955]
[1735290746950,0.17006886,97276.0,97257.0,0.051487]
[1735290747152,0.17006886,97276.0,97271.0,0.05148]
[1735290747360,0.17006886,97276.0,97243.0,0.051495]
[1735290747361,0.17006886,97276.0,97274.0,0.051478]
[1735290747953,0.051478,97276.0,97255.0,0.051488]
[1735290748152,0.11859086,97275.0,97256.0,0.051487]
[1735290748353,0.11859086,97275.0,97241.0,0.00154258]
[1735290748548,0.051481,97270.0,97242.0,0.02683032]
[1735290748754,0.11859086,97275.0,97243.0,0.02683032]
[1735290748956,0.23510486,97260.0,97228.0,0.051502]
[1735290749154,0.051499,97236.0,97229.0,0.01032552]
[1735290749456,0.051492,97248.0,97220.0,0.58078486]
[1735290749661,0.051492,97248.0,97225.0,0.02688049]
[1735290749859,0.11704828,97247.0,97234.0,0.051499]
[1735290750159,0.051494,97245.0,97220.0,0.34568]
[1735290750366,0.051494,97245.0,97225.0,0.02689203]
[1735290750557,0.051494,97245.0,97226.0,0.02689203]
[1735290750754,0.051494,97245.0,97227.0,0.02689203]
[1735290750956,0.051494,97245.0,97231.0,0.051501]
[1735290751261,0.11704828,97247.0,97228.0,0.01252966]
[1735290751455,0.11704828,97247.0,97240.0,0.051496]
[1735290751656,0.16854128,97247.0,97235.0,0.051499]
[1735290751853,0.11704828,97247.0,97228.0,0.01252966]
[1735290752059,0.18387576,97286.0,97237.0,0.23510486]
[1735290752258,0.11704828,97278.0,97268.0,0.051481]
[1735290752457,0.11704828,97278.0,97257.0,0.01252966]
[1735290752757,0.11704828,97278.0,97260.0,0.01252966]
[1735290752962,0.11704828,97278.0,97259.0,0.01252966]
[1735290753159,0.11704828,97278.0,97260.0,0.02794353]
[1735290753361,0.11704828,97278.0,97267.0,0.051482]
[1735290753556,0.11704828,97278.0,97269.0,0.051481]
[1735290754458,0.11704828,97278.0,97272.0,0.051479]
[1735290754653,0.11704828,97278.0,97273.0,0.01153745]
[1735290754862,0.11704828,97278.0,97274.0,0.01153745]
[1735290755066,0.11704828,97278.0,97275.0,0.01153745]
[1735290755370,0.11704828,97278.0,97276.0,0.01153745]
[1735290755569,0.23510486,97300.0,97273.0,0.051479]
[1735290755570,0.11704828,97277.0,97273.0,0.051479]
[1735290755866,0.11704828,97277.0,97274.0,0.03008938]
[1735290756065,0.11704828,97277.0,97275.0,0.03008938]
[1735290756266,0.11704828,97277.0,97276.0,0.03008944]
[1735290756666,0.11704828,97277.0,97269.0,0.051481]
[1735290756866,0.11704828,97277.0,97270.0,0.02993861]
[1735290757061,0.11704828,97277.0,97271.0,0.02993861]
[1735290757260,0.11704828,97277.0,97272.0,0.02993861]
[1735290757457,0.11704828,97277.0,97273.0,0.02993861]
[1735290757656,0.2065,97306.0,97248.0,0.01200129]
[1735290757657,0.05148,97271.0,97256.0,0.01252077]
[1735290757858,0.05148,97271.0,97255.0,0.01252077]
[1735290758060,0.051482,97267.0,97252.0,0.01252077]
[1735290758264,0.051482,97267.0,97249.0,0.01252077]
[1735290758463,0.08710967,97266.0,97250.0,0.051491]
[1735290758658,0.08710967,97266.0,97252.0,0.01252805]
[1735290759061,0.08710967,97266.0,97264.0,0.051483]